bitfinex-derivatives/quotes_SOLF0:USTF0_20260210
["timestamp","ask_amount","ask_price","bid_price","bid_amount"]
[1770738593391,3.84419625,84.328,84.262,4.09719982]
[1770738594192,10.6793,84.334,84.276,10.6865]
[1770738594390,10.6793,84.334,84.277,4.09719982]
[1770738595092,10.678,84.344,84.287,10.6851]
[1770738595494,10.678,84.344,84.25,9.65585078]
[1770738595495,3.84419625,84.348,84.281,4.09719982]
[1770738596283,3.84419625,84.348,84.283,10.6857]
[1770738596996,3.84419625,84.348,84.291,10.6846]
[1770738597298,3.84419625,84.348,84.281,4.09719982]
[1770738597596,3.84419625,84.348,84.299,10.6836]
[1770738598401,3.84419625,84.348,84.307,10.6826]
[1770738599191,98.08,84.384,84.315,10.6815]
[1770738599192,3.84419625,84.364,84.315,10.6815]
[1770738599590,10.6731,84.383,84.319,4.09719982]
[1770738599896,3.84419625,84.389,84.291,4.09719982]
[1770738600691,3.84419625,84.369,84.271,4.09719982]
[1770738600895,3.84419625,84.349,84.271,4.09719982]
[1770738601300,3.84419625,84.349,84.308,10.6825]
[1770738601897,3.84419625,84.349,84.3,10.6835]
[1770738602097,10.6776,84.348,84.3,10.6835]
[1770738602294,3.84419625,84.369,84.289,4.09719982]
[1770738602489,3.84419625,84.369,84.232,14.14296646]
[1770738602490,3.84419625,84.349,84.287,10.6851]
[1770738602695,3.84419625,84.337,84.269,4.09719982]
[1770738602997,9.65585078,84.35,84.243,134.46]
[1770738602998,3.84419625,84.329,84.25,13.7530506]
[1770738603189,3.84419625,84.329,84.255,4.09719982]
[1770738603592,10.6802,84.327,84.255,4.09719982]
[1770738603792,10.6802,84.327,84.278,10.6862]
[1770738603997,3.84419625,84.329,84.255,4.09719982]
[1770738604792,10.681,84.321,84.266,10.6878]
[1770738605691,3.84419625,84.312,84.242,134.44]
[1770738605898,9.65585078,84.35,84.235,4.09719982]
[1770738605899,3.84419625,84.299,84.235,4.09719982]
[1770738606093,10.6859,84.282,84.235,4.09719982]
[1770738606299,3.84419625,84.299,84.213,4.09719982]
[1770738606604,3.84419625,84.279,84.213,4.09719982]
[1770738606902,3.84419625,84.268,84.191,4.09719982]
[1770738607301,3.84419625,84.249,84.169,4.09719982]
[1770738607603,3.84419625,84.269,84.18,9.65585078]
[1770738607901,3.84419625,84.269,84.181,4.09719982]
[1770738608303,3.84419625,84.269,84.205,10.6955]
[1770738609005,3.84419625,84.259,84.191,10.6973]
[1770738609200,3.84419625,84.239,84.118,4.09719982]
[1770738609400,3.84419625,84.209,84.118,4.09719982]
[1770738609905,3.84419625,84.209,84.142,4.09719982]
[1770738610907,10.6952,84.208,84.142,4.09719982]
[1770738611104,14.53939625,84.208,84.142,4.09719982]
[1770738611310,3.84419625,84.207,84.142,4.09719982]
[1770738612007,3.84419625,84.205,84.142,4.09719982]
[1770738612204,3.84419625,84.205,84.128,10.7054]
[1770738612599,3.84419625,84.205,84.128,14.80259982]
[1770738612805,3.84419625,84.201,84.133,14.80179982]
[1770738613407,3.84419625,84.201,84.144,10.7033]
[1770738613807,3.84419625,84.201,84.144,14.80049982]
[1770738614003,9.68355491,84.21,84.145,4.09719982]
[1770738614209,3.84419625,84.208,84.133,4.09719982]
[1770738614717,3.84419625,84.189,84.092,4.09719982]
[1770738614913,3.84419625,84.169,84.092,4.09719982]
[1770738616417,3.84419625,84.169,84.068,4.09719982]
[1770738616613,3.84419625,84.169,84.08,9.68355491]
[1770738616813,3.84419625,84.168,84.105,10.7082]
[1770738617019,3.84419625,84.168,84.081,4.09719982]
[1770738617519,3.84419625,84.168,84.105,10.7083]
[1770738617818,3.84419625,84.168,84.069,4.09719982]
[1770738618011,3.84419625,84.155,84.08,10.7114]
[1770738618416,3.84419625,84.149,84.08,10.7114]
[1770738618608,3.84419625,84.149,84.069,14.80999982]
[1770738618814,9.68355491,84.17,84.069,14.80999982]
[1770738618815,3.84419625,84.129,84.069,14.80999982]
[1770738619018,3.84419625,84.149,84.069,4.09719982]
[1770738619515,9.68355491,84.17,84.041,4.09719982]
[1770738619516,3.84419625,84.129,84.041,4.09719982]
[1770738619907,10.7066,84.119,84.058,10.7142]
[1770738620107,3.76813676,84.109,84.041,4.09719982]
[1770738620304,3.76813676,84.109,84.022,3.73681963]
[1770738620508,3.76813676,84.101,84.034,10.7173]
[1770738620712,3.76813676,84.119,84.031,3.73681963]
[1770738621105,3.76813676,84.119,84.045,10.7159]
[1770738621106,10.7084,84.104,84.045,10.7159]
[1770738621620,3.93114738,84.101,84.034,10.7173]
[1770738621813,3.93114738,84.099,84.034,10.7173]
[1770738622013,3.93114738,84.099,84.031,3.73681963]
[1770738623814,3.93114738,84.079,84.007,3.73120905]
[1770738624319,10.7118,84.078,84.017,10.7195]
[1770738624914,3.93114738,84.079,84.027,10.7181]
[1770738625214,3.93114738,84.098,84.028,3.73120905]
[1770738626011,3.93114738,84.098,84.038,10.7168]
[1770738626512,10.7082,84.106,84.047,10.7156]
[1770738626913,10.7082,84.106,84.028,3.73120905]
[1770738626914,3.93114738,84.099,84.028,3.73120905]
[1770738627517,3.93114738,84.079,84.028,3.73120905]
[1770738627821,3.93114738,84.079,83.991,3.73120905]
[1770738628121,3.93114738,84.065,84.01,10.7203]
[1770738629318,3.93114738,84.084,84.009,3.73120905]
[1770738629520,3.93114738,84.084,84.011,3.73120905]
[1770738630122,3.93114738,84.079,84.011,3.73120905]
[1770738631821,3.93114738,84.079,84.025,10.7184]
[1770738632016,3.93114738,84.079,84.011,3.73120905]
[1770738632427,3.93114738,84.099,84.025,3.73120905]
[1770738632814,3.93114738,84.089,84.01,9.70623608]
[1770738633019,14.64314738,84.077,84.02,10.7191]
[1770738633523,10.7129,84.069,84.01,10.7203]
[1770738633718,3.93114738,84.068,84.01,10.7203]
[1770738634114,10.7135,84.065,84.01,10.7203]
[1770738634515,3.93114738,84.068,84.007,3.73120905]
[1770738635025,94.9,84.1,83.964,35.62]
[1770738635026,3.93114738,84.089,84.011,3.73120905]
[1770738635423,10.712,84.076,84.028,10.7181]
[1770738635726,3.93114738,84.089,84.028,10.7181]
[1770738636329,3.93114738,84.089,84.039,10.7166]
[1770738636532,3.93114738,84.108,84.029,3.73120905]
[1770738636731,10.7086,84.103,84.054,10.7147]
[1770738636921,3.93114738,84.108,84.054,10.7147]
[1770738637122,3.93114738,84.126,84.055,3.73120905]
[1770738637521,10.705,84.132,84.077,10.7117]
[1770738637825,3.93114738,84.145,84.051,3.73120905]
[1770738638027,3.93114738,84.129,84.051,3.73120905]
[1770738638431,3.93114738,84.11,84.051,3.73120905]
[1770738638631,3.93114738,84.11,84.036,94.92]
[1770738638830,3.93114738,84.11,84.037,3.73120905]
[1770738639728,3.93114738,84.11,83.995,3.73120905]
[1770738639729,3.93114738,84.089,83.995,3.73120905]
[1770738640124,3.93114738,84.069,83.995,3.73120905]
[1770738640422,3.93114738,84.089,83.995,3.73120905]
[1770738640833,10.7132,84.067,83.995,3.73120905]
[1770738641231,3.93114738,84.054,83.995,3.73120905]
[1770738641430,99.4,84.101,83.951,3.73120905]
[1770738641431,3.93114738,84.029,83.951,3.73120905]
[1770738641839,3.93114738,84.015,83.931,3.73120905]
[1770738642139,3.93114738,84.009,83.931,3.73120905]
[1770738642353,10.7233,83.987,83.931,3.73120905]
[1770738642545,3.93114738,83.99,83.931,3.73120905]
[1770738642738,3.93114738,83.989,83.911,3.73120905]
[1770738643037,9.70623608,83.99,83.88,136.58623608]
[1770738643038,3.93114738,83.965,83.888,3.73120905]
[1770738643642,3.93114738,83.965,83.902,3.73120905]
[1770738644235,98.87114738,83.986,83.902,3.73120905]
[1770738644438,3.93114738,83.986,83.902,3.73120905]
[1770738644841,3.93114738,83.986,83.89,9.70623608]
[1770738644842,14.65464738,83.986,83.915,3.73120905]
[1770738645841,3.93114738,84.049,83.951,3.73120905]
[1770738646237,3.93114738,84.049,83.968,3.73120905]
[1770738646436,3.93114738,84.049,83.95,9.70623608]
[1770738646437,3.93114738,84.049,83.971,3.73120905]
[1770738646837,10.713,84.068,83.998,10.7219]
[1770738647043,3.93114738,84.067,83.998,10.7219]
[1770738647548,10.7139,84.061,83.998,10.7219]
[1770738647754,3.93114738,84.067,83.993,3.73120905]
[1770738648152,10.7153,84.05,83.993,3.73120905]
[1770738648343,3.93114738,84.067,83.993,3.73120905]
[1770738648650,10.715,84.052,83.993,3.73120905]
[1770738648839,166.5844,84.1,83.993,3.73120905]
[1770738648840,3.93114738,84.089,83.993,3.73120905]
[1770738649244,3.93114738,84.089,84.005,3.73120905]
[1770738649547,3.93114738,84.089,83.981,3.73120905]
[1770738650257,3.93114738,84.089,84.006,3.94902589]
[1770738650752,3.93114738,84.089,84.02,10.7191]
[1770738651348,4.01394777,84.083,84.02,10.7191]
[1770738651753,4.01394777,84.083,84.006,3.94902589]
[1770738652251,4.01394777,84.107,84.021,3.94902589]
[1770738652451,4.01394777,84.107,84.041,10.7164]
[1770738652954,10.7084,84.105,84.043,10.7161]
[1770738653154,4.01394777,84.107,84.044,3.94902589]
[1770738653348,4.01394777,84.129,84.044,3.94902589]
[1770738653554,10.7056,84.127,84.059,3.94902589]
[1770738654155,4.01394777,84.129,84.062,3.94902589]
[1770738654555,4.01394777,84.129,84.041,3.94902589]
[1770738654849,13.72018385,84.15,84.063,3.94902589]
[1770738655251,14.71784777,84.14,84.068,3.94902589]
[1770738655456,4.01394777,84.14,84.068,3.94902589]
[1770738656251,4.01394777,84.129,84.068,3.94902589]
[1770738657653,10.7054,84.128,84.068,3.94902589]
[1770738658451,10.7039,84.14,84.071,14.66162589]
[1770738658657,10.7039,84.14,84.072,3.94902589]
[1770738659355,10.7039,84.14,84.035,94.96]
[1770738659356,10.7029,84.148,84.075,3.94902589]
[1770738659956,4.01394777,84.149,84.075,3.94902589]
[1770738660252,4.01394777,84.149,84.07,9.70623608]
[1770738660253,4.01394777,84.149,84.081,3.94902589]
[1770738660848,4.01394777,84.149,84.091,10.71]
[1770738661751,4.01394777,84.149,84.07,9.70623608]
[1770738661953,4.01394777,84.149,84.06,3.94902589]
[1770738662147,4.01394777,84.149,84.011,166.7605]
[1770738662148,4.01394777,84.149,84.063,3.94902589]
[1770738662361,4.01394777,84.129,84.031,3.94902589]
[1770738662657,4.01394777,84.129,84.06,3.94902589]
[1770738662658,10.7056,84.127,84.06,3.94902589]
[1770738662857,4.01394777,84.149,84.06,3.94902589]
[1770738663052,4.01394777,84.169,84.071,3.94902589]
[1770738663554,4.01394777,84.169,84.096,3.94902589]
[1770738663955,4.01394777,84.189,84.111,3.94902589]
[1770738664253,4.01394777,84.189,84.11,9.70623608]
[1770738664254,13.72018385,84.2,84.13,3.94902589]
[1770738664450,4.01394777,84.199,84.13,3.94902589]
[1770738664648,4.01394777,84.199,84.131,3.94902589]
[1770738665355,4.01394777,84.199,84.108,3.94902589]
[1770738665550,4.01394777,84.179,84.108,3.94902589]
[1770738666861,10.7003,84.168,84.108,14.65692589]
[1770738667157,4.01394777,84.179,84.076,3.94902589]
[1770738667364,4.01394777,84.159,84.076,3.94902589]
[1770738667859,4.01394777,84.159,84.091,3.94902589]
[1770738668261,4.01394777,84.179,84.091,3.94902589]
[1770738668650,4.01394777,84.179,84.075,94.9]
[1770738668651,9.70623608,84.18,84.113,3.94902589]
[1770738668959,4.01394777,84.219,84.131,3.94902589]
[1770738669158,4.01394777,84.219,84.142,10.7035]
[1770738669462,4.01394777,84.219,84.131,3.94902589]
[1770738670756,10.6979,84.187,84.134,10.7045]
[1770738670957,4.01394777,84.179,84.105,3.94902589]
[1770738671568,10.7003,84.168,84.105,3.94902589]
[1770738672163,4.01394777,84.179,84.105,3.94902589]
[1770738672164,10.7014,84.16,84.105,3.94902589]
[1770738672753,10.7002,84.169,84.105,14.65722589]
[1770738672955,4.01394777,84.179,84.105,14.65722589]
[1770738673364,10.6996,84.173,84.117,10.7067]
[1770738673567,10.6996,84.173,84.106,3.94902589]
[1770738673963,10.6984,84.183,84.124,10.7058]
[1770738674561,4.01394777,84.199,84.124,10.7058]
[1770738674762,4.01394777,84.199,84.094,104.22]
[1770738674763,4.01394777,84.199,84.126,3.94902589]
[1770738674968,10.6958,84.204,84.126,3.94902589]
[1770738675171,4.01394777,84.219,84.126,3.94902589]
[1770738675466,4.01394777,84.219,84.159,10.7014]
[1770738675766,10.6955,84.206,84.148,3.94902589]
[1770738676162,4.01394777,84.199,84.127,3.94902589]
[1770738676367,10.6985,84.182,84.127,14.65442589]
[1770738677164,9.70623608,84.2,84.127,3.94902589]
[1770738677370,4.01394777,84.229,84.141,3.94902589]
[1770738677567,4.01394777,84.209,84.141,3.94902589]
[1770738678063,4.01394777,84.237,84.141,3.94902589]
[1770738678267,4.01394777,84.229,84.159,10.7014]
[1770738678666,4.01394777,84.229,84.141,3.94902589]
[1770738679369,4.01394777,84.209,84.141,3.94902589]
[1770738679862,10.6975,84.19,84.141,10.7036]
[1770738680566,10.6965,84.198,84.15,10.7026]
[1770738680767,9.70623608,84.23,84.141,3.8351896]
[1770738680768,13.68476875,84.23,84.141,3.8351896]
[1770738681068,3.97853267,84.229,84.141,3.8351896]
[1770738682763,10.6939,84.219,84.169,10.7001]
[1770738682963,10.6939,84.219,84.141,3.8351896]
[1770738682964,3.97853267,84.229,84.141,3.8351896]
[1770738683365,10.6958,84.204,84.153,10.7021]
[1770738683566,10.6958,84.204,84.141,3.8351896]
[1770738683870,3.97853267,84.229,84.141,3.8351896]
[1770738684875,10.6946,84.213,84.16,10.7013]
[1770738685073,10.6946,84.213,84.141,3.8351896]
[1770738685574,10.6957,84.205,84.16,10.7012]
[1770738687568,10.6947,84.212,84.167,10.7003]
[1770738687769,3.97853267,84.229,84.141,3.8351896]
[1770738688275,10.6945,84.214,84.166,10.7005]
[1770738688475,3.97853267,84.229,84.141,3.8351896]
[1770738689669,4.0836383,84.227,84.141,3.8351896]
[1770738689974,4.0836383,84.209,84.141,3.8351896]
[1770738690770,10.6972,84.193,84.141,3.8351896]
[1770738690966,4.0836383,84.209,84.141,3.8351896]
[1770738691171,4.0836383,84.248,84.161,3.95108201]
[1770738691367,10.6924,84.231,84.161,3.95108201]
[1770738691569,4.0836383,84.248,84.161,3.95108201]
[1770738692071,10.693,84.226,84.18,10.6986]
[1770738693967,10.692,84.233,84.187,10.6978]
[1770738694172,4.0836383,84.269,84.181,3.95108201]
[1770738694374,4.0836383,84.259,84.181,3.95108201]
[1770738695466,10.6918,84.236,84.181,3.95108201]
[1770738695668,4.0836383,84.259,84.181,3.95108201]
[1770738696072,9.6732478,84.24,84.161,3.95108201]
[1770738696273,4.0836383,84.239,84.161,3.95108201]
[1770738696577,10.6926,84.229,84.181,10.6986]
[1770738696979,4.0836383,84.239,84.161,3.95108201]
[1770738697180,10.6923,84.231,84.186,10.6979]
[1770738698975,4.0836383,84.239,84.161,3.95108201]
[1770738699876,4.0836383,84.239,84.163,10.7008]
[1770738700786,4.0836383,84.212,84.149,10.7026]
[1770738701282,4.0836383,84.212,84.141,10.7037]
[1770738701283,10.6982,84.184,84.141,10.7037]
[1770738701679,4.0836383,84.212,84.114,3.95108201]
[1770738701985,4.0836383,84.177,84.114,3.95108201]
[1770738702383,4.0836383,84.177,84.095,3.95108201]
[1770738702582,10.7022,84.154,84.105,10.7083]
[1770738702882,4.0836383,84.177,84.095,3.95108201]
[1770738703087,10.7022,84.154,84.103,10.7085]
[1770738703380,4.0836383,84.177,84.104,3.95108201]
[1770738703575,10.6999,84.171,84.124,10.7058]
[1770738703979,4.0836383,84.198,84.123,3.95108201]
[1770738704386,9.6732478,84.22,84.147,10.7029]
[1770738704387,10.6959,84.203,84.147,10.7029]
[1770738704888,4.0836383,84.199,84.131,10.705]
[1770738705080,4.0836383,84.199,84.118,3.95108201]
[1770738706086,13.0667128,84.204,84.075,14.40968906]
[1770738706087,4.0836383,84.172,84.075,3.95108201]
[1770738706287,4.0836383,84.159,84.075,3.95108201]
[1770738707384,4.0836383,84.159,84.037,94.8]
[1770738707385,4.0836383,84.159,84.084,3.95108201]
[1770738707984,10.7039,84.14,84.084,3.95108201]
[1770738709092,10.7053,84.129,84.084,3.95108201]
[1770738709683,4.0836383,84.159,84.084,3.95108201]
[1770738709684,10.7041,84.139,84.084,3.95108201]
[1770738709986,4.0836383,84.159,84.084,3.95108201]
[1770738710397,3.71755166,84.12,84.054,3.74339295]
[1770738710785,3.71755166,84.119,84.054,3.74339295]
[1770738711287,10.7089,84.1,84.054,3.74339295]
[1770738711488,3.71755166,84.119,84.054,3.74339295]
[1770738711689,3.71755166,84.119,84.035,3.74339295]
[1770738712782,10.7088,84.101,84.039,10.7167]
[1770738713291,10.7076,84.111,84.049,3.74339295]
[1770738713596,14.2880147,84.157,84.015,94.84]
[1770738713597,101.18,84.138,84.051,3.74339295]
[1770738714092,3.71755166,84.139,84.051,3.74339295]
[1770738714685,10.7057,84.126,84.068,10.7129]
[1770738714898,10.7057,84.126,84.068,14.45629295]
[1770738715392,3.71755166,84.119,84.034,3.74339295]
[1770738715988,10.7067,84.118,84.056,10.7145]
[1770738716382,3.71755166,84.119,84.056,10.7145]
[1770738717695,10.7087,84.102,84.056,10.7145]
[1770738718690,10.7087,84.102,84.047,10.7156]
[1770738719891,10.7097,84.095,84.047,10.7156]
[1770738720495,3.71755166,84.119,84.048,3.74339295]
[1770738720699,36.46778537,84.22,84.048,3.74339295]
[1770738720700,3.71755166,84.139,84.048,3.74339295]
[1770738720891,3.71755166,84.158,84.061,3.74339295]
[1770738721197,3.71755166,84.138,84.078,10.7117]
[1770738721395,13.39079946,84.16,84.081,3.74339295]
[1770738721900,10.7048,84.133,84.091,10.7101]
[1770738722093,3.71755166,84.159,84.061,3.74339295]
[1770738722397,3.71755166,84.159,84.013,14.40968906]
[1770738722398,3.71755166,84.119,84.045,3.74339295]
[1770738722698,3.71755166,84.119,84.021,3.74339295]
[1770738723094,3.71755166,84.098,84.021,3.74339295]
[1770738723898,10.712,84.076,84.021,3.74339295]
[1770738724199,3.71755166,84.098,84.001,3.74339295]
[1770738724394,3.71755166,84.096,84.001,3.74339295]
[1770738724599,3.71755166,84.096,83.974,94.88]
[1770738724600,3.71755166,84.064,83.982,3.74339295]
[1770738726200,10.715,84.053,83.982,3.74339295]
[1770738726394,3.71755166,84.087,84.001,3.74339295]
[1770738726599,10.7141,84.06,84.005,10.7209]
[1770738727195,10.7141,84.06,84.001,3.74339295]
[1770738727502,9.6732478,84.09,83.996,10.7221]
[1770738727503,3.71755166,84.047,83.996,10.7221]
[1770738727906,10.7169,84.038,83.98,3.74339295]
[1770738729113,10.7169,84.038,83.909,166.9626]
[1770738729114,3.71755166,84.029,83.947,3.74339295]
[1770738729693,3.71755166,84.029,83.951,3.74339295]
[1770738730198,3.71755166,84.049,83.971,3.74339295]
[1770738730393,10.7171,84.036,83.978,3.74339295]
[1770738730999,3.71755166,84.049,83.978,3.74339295]
[1770738731000,10.7159,84.046,83.978,3.74339295]
[1770738731600,10.7159,84.046,83.99,10.7228]
[1770738731804,10.7146,84.056,83.991,3.74339295]
[1770738732201,3.71755166,84.068,83.991,3.74339295]
[1770738732403,3.71755166,84.068,83.94,21.4585]
[1770738732404,3.71755166,84.039,83.969,3.74339295]
[1770738732802,10.719,84.021,83.969,3.74339295]
[1770738733008,3.71755166,84.029,83.947,3.74339295]
[1770738733704,3.71755166,84.019,83.947,3.74339295]
[1770738734103,9.72598805,84.04,83.951,3.74339295]
[1770738734299,20.44268805,84.04,83.983,10.7238]
[1770738734500,9.72598805,84.06,83.975,3.74339295]
[1770738735107,9.72598805,84.08,83.998,3.74339295]
[1770738735602,3.71755166,84.079,83.998,3.74339295]
[1770738736501,3.71755166,84.079,84.007,10.7207]
[1770738736502,10.7139,84.061,84.007,10.7207]
[1770738737403,10.7154,84.05,83.998,3.74339295]
[1770738737816,3.71755166,84.059,83.977,98.24]
[1770738738002,10.7167,84.039,83.986,10.7234]
[1770738738200,3.71755166,84.059,83.987,3.74339295]
[1770738739104,3.71755166,84.077,83.987,3.74339295]
[1770738739711,10.7153,84.051,84.002,10.7213]
[1770738740408,4.09544458,84.094,84.014,3.89050972]
[1770738741007,4.09544458,84.094,84.033,10.7174]
[1770738741209,4.09544458,84.094,84.034,3.89050972]
[1770738741605,10.71,84.092,84.04,10.7165]
[1770738743110,4.09544458,84.094,84.034,3.89050972]
[1770738743311,101.08,84.131,84.013,100.4]
[1770738743312,3.81688149,84.119,84.056,3.91148622]
[1770738744412,10.7075,84.112,84.056,3.91148622]
[1770738744814,3.81688149,84.111,84.037,3.91148622]
[1770738745008,3.81688149,84.094,84.026,10.7183]
[1770738745721,3.81688149,84.079,84.012,3.91148622]
[1770738746015,3.81688149,84.079,84.0,9.72598805]
[1770738746318,3.81688149,84.079,83.991,3.91148622]
[1770738746319,3.81688149,84.059,83.991,3.91148622]
[1770738746712,3.81688149,84.059,84.006,10.7208]
[1770738746915,9.72598805,84.08,83.991,3.91148622]
[1770738746916,3.81688149,84.079,83.991,3.91148622]
[1770738747219,3.81688149,84.079,84.001,3.91148622]
[1770738747420,3.81688149,84.079,84.016,10.7196]
[1770738747621,3.81688149,84.079,84.001,3.91148622]
[1770738748013,3.81688149,84.099,84.028,3.91148622]
[1770738748518,3.81688149,84.119,84.046,3.91148622]
[1770738748918,10.7075,84.111,84.06,10.7139]
[1770738749108,3.81688149,84.099,84.011,3.91148622]
[1770738749509,3.81688149,84.099,84.041,10.7164]
[1770738750914,10.71,84.092,84.048,10.7154]
[1770738751516,10.71,84.092,84.04,10.7165]
[1770738752023,10.7109,84.085,84.04,10.7165]
[1770738752523,10.7109,84.085,84.029,3.91148622]
[1770738753720,10.7109,84.085,84.039,10.7167]
[1770738753920,10.7097,84.094,84.039,10.7167]
[1770738755221,3.81688149,84.09,84.002,3.91148622]
[1770738755422,3.81688149,84.09,83.943,175.0]
[1770738755423,3.81688149,84.069,83.981,3.91148622]
[1770738755620,3.81688149,84.049,83.96,3.91148622]
[1770738755923,10.7196,84.017,83.96,3.91148622]
[1770738756715,3.81688149,84.029,83.96,3.91148622]
[1770738757523,3.81688149,84.029,83.981,10.724]
[1770738758515,3.81688149,84.043,83.989,10.723]
[1770738758722,3.81688149,84.043,83.978,3.91148622]
[1770738759117,3.81688149,84.031,83.948,3.91148622]
[1770738761224,10.7186,84.024,83.948,3.91148622]
[1770738761525,3.81688149,84.031,83.948,3.91148622]
[1770738762823,3.81688149,84.031,83.988,10.7232]
[1770738763020,3.81688149,84.031,83.974,3.91148622]
[1770738765124,9.7062947,84.05,83.974,3.91148622]
[1770738765426,9.7062947,84.07,83.981,3.91148622]
[1770738765620,3.81688149,84.071,83.981,3.91148622]
[1770738766018,3.81688149,84.071,84.015,10.7196]
[1770738766019,10.7131,84.068,84.015,10.7196]
[1770738766219,3.81688149,84.089,84.006,3.91148622]
[1770738766621,10.7114,84.081,84.034,10.7172]
[1770738766816,3.81688149,84.089,84.006,3.91148622]
[1770738767421,3.81688149,84.073,84.006,3.91148622]
[1770738767824,10.7135,84.065,84.02,10.719]
[1770738768325,10.7137,84.063,84.012,10.7201]
[1770738768829,14.53058149,84.063,84.012,10.7201]
[1770738769130,3.81688149,84.082,84.006,3.91148622]
[1770738769528,3.81688149,84.082,84.024,3.91148622]
[1770738769826,4.01622159,84.109,84.024,3.91148622]
[1770738770026,10.7089,84.101,84.052,10.715]
[1770738770226,4.01622159,84.089,84.005,3.7797005]
[1770738770625,10.7106,84.088,84.036,10.717]
[1770738770824,4.01622159,84.089,84.022,3.7797005]
[1770738771123,10.708,84.108,84.059,10.7141]
[1770738771327,4.01622159,84.109,84.059,10.7141]
[1770738771725,4.01622159,84.109,84.068,10.7129]
[1770738772720,4.01622159,84.143,84.061,3.7797005]
[1770738772929,10.89681671,84.17,84.044,21.4321]
[1770738772930,4.01622159,84.169,84.081,3.7797005]
[1770738774732,4.01622159,84.138,84.091,10.71]
[1770738774933,4.01622159,84.138,84.081,3.7797005]
[1770738775729,4.01622159,84.138,84.082,10.7111]
[1770738776930,4.01622159,84.138,84.091,10.71]
[1770738777532,10.7028,84.148,84.1,10.7089]
[1770738777728,4.01622159,84.156,84.1,10.7089]
[1770738777932,4.01622159,84.156,84.081,3.7797005]
[1770738778329,10.7002,84.169,84.118,10.7065]
[1770738779229,10.7002,84.169,84.104,3.7797005]
[1770738779230,4.01622159,84.175,84.127,10.7054]
[1770738779431,4.01622159,84.175,84.104,3.7797005]
[1770738779835,4.01622159,84.163,84.106,10.7082]
[1770738780030,4.01622159,84.163,84.08,9.7062947]
[1770738780031,4.01622159,84.163,84.086,3.7797005]
[1770738780230,4.01622159,84.149,84.061,3.7797005]
[1770738780835,4.01622159,84.129,84.061,3.7797005]
[1770738781737,4.01622159,84.149,84.061,3.7797005]
[1770738782130,4.01622159,84.149,84.101,10.7088]
[1770738782441,4.01622159,84.149,84.087,3.7797005]
[1770738782639,4.01622159,84.169,84.087,3.7797005]
[1770738783031,4.01622159,84.156,84.101,10.7088]
[1770738783229,4.01622159,84.156,84.087,3.7797005]
[1770738783637,10.7025,84.151,84.096,10.7093]
[1770738784443,4.01622159,84.156,84.106,10.7081]
[1770738785844,10.7023,84.153,84.106,10.7081]
[1770738786344,14.71852159,84.153,84.106,10.7081]
[1770738787439,14.71852159,84.153,84.098,10.7091]
[1770738787645,14.71852159,84.153,84.097,3.7797005]
[1770738788042,14.71852159,84.153,84.105,10.7082]
[1770738789237,4.01622159,84.144,84.079,3.7797005]
[1770738790839,10.705,84.131,84.085,10.7108]
[1770738791438,10.7039,84.14,84.079,3.7797005]
[1770738791644,4.01622159,84.161,84.081,3.7797005]
[1770738791843,4.01622159,84.183,84.101,3.7797005]
[1770738792044,10.6998,84.172,84.129,10.7052]
[1770738793246,10.6987,84.181,84.135,10.7044]
[1770738793447,4.01622159,84.183,84.13,3.7797005]
[1770738794344,9.7062947,84.18,84.112,3.7797005]
[1770738794549,4.01622159,84.179,84.112,3.7797005]
[1770738796157,10.6998,84.173,84.128,10.7053]
[1770738797049,2.06785291,84.204,84.091,94.88]
[1770738797050,4.01622159,84.197,84.134,3.7797005]
[1770738797254,4.01622159,84.219,84.134,3.7797005]
[1770738797550,4.01622159,84.219,84.163,10.7009]
[1770738797752,4.01622159,84.219,84.151,3.7797005]
[1770738798354,9.7062947,84.24,84.166,10.7004]
[1770738798355,14.71032159,84.217,84.166,10.7004]
[1770738798560,9.7062947,84.24,84.151,3.7797005]
[1770738798561,4.01622159,84.239,84.151,3.7797005]
[1770738798753,14.70772159,84.238,84.184,10.6982]
[1770738798953,4.01622159,84.237,84.172,3.7797005]
[1770738799860,4.07700746,84.233,84.172,3.7797005]
[1770738800762,14.77020746,84.224,84.172,3.7797005]
[1770738801062,4.07700746,84.223,84.172,3.7797005]
[1770738801460,10.694,84.218,84.16,10.7012]
[1770738802166,9.7062947,84.24,84.17,3.75534642]
[1770738802962,10.6917,84.236,84.181,10.6985]
[1770738803261,4.05082961,84.235,84.181,10.6985]
[1770738803664,100.08,84.259,84.16,9.7062947]
[1770738803665,4.05082961,84.255,84.182,3.75534642]
[1770738805158,4.05082961,84.255,84.2,10.6961]
[1770738805958,10.6894,84.254,84.2,10.6961]